Cogmind - Beta 14 @@@ ROGUE MODE // 2024.12.22 @ 17:44:24 Player: Mathewnd Result: Destroyed by Y-45 Defender with Beam Rifle Performance ------------- Evolutions (1) 500 Regions Visited (3) 600 Robots Destroyed (19) 95 Value Destroyed (458) 458 Prototype IDs (2) 40 Alien Tech Used (0) 0 Bonus (0) 0 TOTAL SCORE: 1693 Bonus ------- None Cogmind --------- Core Integrity 0/400 Matter 295/300 Energy 100/100 System Corruption 2% Temperature Cool (9) Movement Core (200) Ox3 Location -9/Materials Parts ------- > --- POWER (1) -------- (None) > --- PROPULSION (4) --- (None) > --- UTILITY (2) ------ Medium Storage Unit Signal Interpreter > --- WEAPON (2) ------- (None) > --- INVENTORY (10) --- Flight Unit Flight Unit Flight Unit Cesium-ion Thruster Structural Scanner Sensor Array ECM Suite Hacking Suite Datajack Peak State ------------ > --- POWER ------------ Ion Engine > --- PROPULSION ------- Light Treads Light Treads Aluminum Leg > --- UTILITY ---------- Medium Storage Unit Signal Interpreter > --- WEAPON ----------- Medium Laser Light Assault Rifle > --- INVENTORY -------- Light Ion Engine Flight Unit Flight Unit Cesium-ion Thruster Structural Scanner Sensor Array ECM Suite Hacking Suite EM Pulse Gun Datajack [Rating: 9] Favorites ----------- Power Ion Engine Engine Ion Engine Propulsion Light Treads Treads Light Treads Leg Aluminum Leg Utility Signal Interpreter Storage Medium Storage Unit Processor Signal Interpreter Weapon Light Assault Rifle Energy Gun Medium Laser Ballistic Gun Light Assault Rifle Build | -11 -10 -10 -9 ------- Run | Yrd Mat Min Mat Slots Evolved 2 | . . . 2 Power . | . . . . Propulsion 2 | . . . 2 Utility . | . . . . Weapon . | . . . . Parts Attached 12 | 6 3 . 3 Power 2 | 1 . . 1 Engine 2 | 1 . . 1 Core . | . . . . Reactor . | . . . . Propulsion 3 | 2 . . 1 Treads 2 | 2 . . . Leg 1 | . . . 1 Wheel . | . . . . Hover . | . . . . Flight . | . . . . Utility 3 | 1 2 . . Device . | . . . . Storage 2 | 1 1 . . Processor 1 | . 1 . . Hackware . | . . . . Protection . | . . . . Artifact . | . . . . Weapon 4 | 2 1 . 1 Energy Gun 3 | 1 1 . 1 Energy Cannon . | . . . . Ballistic Gun 1 | 1 . . . Ballistic Cannon . | . . . . Launcher . | . . . . Special Weapon . | . . . . Impact Weapon . | . . . . Slashing Weapon . | . . . . Piercing Weapon . | . . . . Special Melee Weapon . | . . . . Unidentified Prototypes . | . . . . Parts Lost 8 | . . . 8 Power 2 | . . . 2 Propulsion 3 | . . . 3 Utility . | . . . . Weapon 3 | . . . 3 Highest Loss Streak 7 | . . . 7 To Critical Strikes . | . . . . Average Slot Usage (%) 93 | . 98 100 71 Engine 13 | . 14 14 10 Treads 25 | . 28 28 16 Storage 13 | . 14 14 11 Processor 12 | . 12 14 11 Energy Gun 13 | . 14 14 10 Ballistic Gun 12 | . 14 14 9 Peak Build Rating 9 | 6 8 8 9 Average Rating 7 | 3 6 8 7 On Entrance 5 | . 6 8 8 Naked Turns . | . . . . Heaviest Build 19 | 13 18 18 19 Greatest Support 40 | 40 40 40 40 Greatest Overweight (x) 4 | 1 . . 4 Average Overweight (x) . | . . . . Largest Inventory Capacity 10 | 8 10 10 10 Average Capacity 9 | 7 8 10 10 Most Carried 10 | 8 10 10 10 Average Carried 7 | 4 5 9 9 Final Capacity 10 | 8 10 10 10 Final Carried 10 | 4 10 10 9 Class Distribution -------------------- 100% | Mutant Dominant Class ---------------- Mutant | -10/Materials Mutant | -10/Mines Mutant | -9/Materials Resources | -11 -10 -10 -9 ----------- Run | Yrd Mat Min Mat Matter Collected 333 | 237 82 3 11 Remotely . | . . . . Salvage Created 653 | . 362 109 182 Parts 38 | . 17 5 16 Haulers Intercepted 1 | . 1 . . Recyclers Shooed 2 | . . 2 . Parts Field Recycled . | . . . . Retrieved Matter . | . . . . Parts Self-Destructed . | . . . . Prevented . | . . . . Kills | -11 -10 -10 -9 ------- Run | Yrd Mat Min Mat Combat Hostiles Destroyed 14 | . 6 2 6 Guns 13 | . 5 2 6 AOE 1 | . 1 . . Classes Destroyed 6 | . 4 2 . Hauler 1 | . 1 . . Recycler 1 | . . 1 . Operator 1 | . 1 . . Watcher 2 | . 1 . 1 Swarmer 5 | . . 1 4 Grunt 9 | . 6 1 2 Best Kill Streak 4 | . 3 3 4 Combat Bots Only 4 | . 2 2 4 Max Kills in Single Turn 1 | . 1 1 1 Gunslinging . | . . . . Exploded 1 | . 1 . . Melee . | . . . . Uniques/NPCs Destroyed . | . . . . Combat | -11 -10 -10 -9 -------- Run | Yrd Mat Min Mat Hostile Shots Fired 138 | . 26 5 107 Missed 37 | . 7 3 27 Damage Taken 1259 | . 276 22 961 Core 518 | . 96 11 411 Absorbed by Shields . | . . . . Core Remaining (%) 78 | 100 . 57 . Volleys Fired 58 | . 29 6 23 Largest 2 | . 2 2 2 Hottest 90 | . 70 70 90 Shots Fired 114 | . 58 12 44 Gun 114 | . 58 12 44 Cannon . | . . . . Launcher . | . . . . Special . | . . . . Kinetic 55 | . 29 6 20 Thermal 34 | . 7 6 21 Explosive . | . . . . Electromagnetic 25 | . 22 . 3 Robot Hit Streak 14 | . 12 14 6 Robot Miss Streak 3 | . 3 2 2 Penetration Max . | . . . . Secondary Targets 3 | . . . 3 Max Gunslinging Chain 1 | . . . 1 Shots Hit Robots 78 | . 42 5 31 Core Hits 35 | . 17 6 12 Critical Kills . | . . . . Critical Parts Destroyed . | . . . . Critical Strikes 3 | . 1 1 1 Burn 3 | . 1 1 1 Melee Attacks . | . . . . Impact . | . . . . Slashing . | . . . . Piercing . | . . . . Sneak Attacks . | . . . . Combat Hostiles . | . . . . Follow-up Attacks . | . . . . Damage Inflicted 935 | . 550 63 322 Guns 827 | . 450 63 314 Cannons . | . . . . Explosions 100 | . 100 . . Melee . | . . . . Ramming 8 | . . . 8 Kinetic 282 | . 166 13 103 Thermal 377 | . 138 50 189 Explosive . | . . . . Electromagnetic 268 | . 246 . 22 Impact . | . . . . Slashing . | . . . . Piercing . | . . . . Highest Corruption 1 | . . . 1 Average Corruption 1 | . . . 1 Corruption Purged . | . . . . Corruption Blocked . | . . . . Overload Shots . | . . . . Overflow Damage . | . . . . Projectiles . | . . . . Explosions . | . . . . Melee . | . . . . Knockbacks . | . . . . Impact . | . . . . Kinetic . | . . . . Secondary . | . . . . Self-Inflicted Damage 25 | . 17 . 8 Shots 1 | . 1 . . Rammed . | . . . . Targets Rammed . | . . . . Kicked . | . . . . Crushed . | . . . . Highest Temperature 112 | . 112 70 101 Average Temperature 37 | . 37 35 39 Received Heat Transfer 486 | . 144 12 330 Siege Activations . | . . . . Robots Corrupted . | . . . . Combat Hostiles . | . . . . Parts Fried . | . . . . Impact Corruptions . | . . . . Robots Melted . | . . . . Combat Hostiles . | . . . . Parts Melted 1 | . . . 1 Heat Transferred 1247 | . 396 222 629 Parts Sabotaged . | . . . . Parts Stolen . | . . . . Parts Stripped . | . . . . Power Chain Reactions 1 | . 1 . . Alert | -11 -10 -10 -9 ------- Run | Yrd Mat Min Mat Peak Influence 228 | . 197 81 228 Initial 31 | . . 21 31 Average 81 | . 103 52 104 Maximum Alert Level 1 | . . . 1 Low Security (%) 97 | 100 100 100 86 Level 1 2 | . . . 13 Level 2 . | . . . . Level 3 . | . . . . Level 4 . | . . . . Level 5 . | . . . . High Security . | . . . . Max Security . | . . . . Squads Dispatched 5 | . 2 1 2 Investigation 4 | . 1 1 2 Extermination . | . . . . Reinforcement 1 | . 1 . . Assault . | . . . . Garrison . | . . . . Intercept . | . . . . Searches Triggered . | . . . . Construction Impeded . | . . . . Haulers Reinforced . | . . . . Active Scanning Responses . | . . . . Cargo Convoy Interrupts . | . . . . Stealth | -11 -10 -10 -9 --------- Run | Yrd Mat Min Mat Distress Signals 2 | . 1 . 1 Communications Jammed . | . . . . Distress Signals . | . . . . Times Spotted 30 | . 11 2 17 Peak Tracking Total 7 | . 4 2 7 Tactical Retreats 2 | . 1 . 1 Traps | -11 -10 -10 -9 ------- Run | Yrd Mat Min Mat Traps Triggered 2 | . 1 . 1 Indirectly . | . . . . Trap Hack Attempts . | . . . . Triggered . | . . . . Disarmed . | . . . . Reprogrammed . | . . . . Reused . | . . . . Traps Extracted . | . . . . Installed . | . . . . Triggered . | . . . . Machines | -11 -10 -10 -9 ---------- Run | Yrd Mat Min Mat Machines Disabled 2 | . 1 . 1 Max in Single Turn 1 | . 1 . 1 Machines Repaired . | . . . . Machines Dismantled . | . . . . Machines Sabotaged . | . . . . Overloaded Fab Kills . | . . . . Hacking | -11 -10 -10 -9 --------- Run | Yrd Mat Min Mat Machines Accessed 5 | . 3 1 1 Terminals 3 | . 2 . 1 Fabricators . | . . . . Repair Stations . | . . . . Recycling Units 1 | . 1 . . Scanalyzers . | . . . . Garrison Access . | . . . . Total Hacks 9 | . 5 1 3 Successful 5 | . 4 1 . Failed 4 | . 1 . 3 Catastrophic . | . . . . Database Lockouts . | . . . . Manual 4 | . 1 . 3 Terminals 7 | . 4 . 3 Fabricators . | . . . . Repair Stations . | . . . . Recycling Units 1 | . 1 . . Scanalyzers . | . . . . Garrison Access . | . . . . Terminal Hacks 3 | . 2 1 . Prototype ID Bank 1 | . 1 . . Open Door 1 | . . 1 . Zone Layout 1 | . 1 . . Fabricator Hacks . | . . . . Repair Station Hacks . | . . . . Recycling Unit Hacks 1 | . 1 . . Report Inventory 1 | . 1 . . Scanalyzer . | . . . . Garrison Access Hacks . | . . . . Unauthorized Hacks 1 | . 1 . . Terminals 1 | . 1 . . Botnet 1 | . 1 . . Fabricators . | . . . . Repair Stations . | . . . . Recycling Units . | . . . . Scanalyzers . | . . . . Garrison Access . | . . . . Data Cores Recovered . | . . . . Used . | . . . . Hacking Detections 3 | . 2 . 1 Full Trace Events 1 | . . . 1 Feedback Events . | . . . . Feedback Blocked . | . . . . Robot Schematics Acquired . | . . . . Robots Built . | . . . . Authchips . | . . . . Time . | . . . . Total Robot Build Rating . | . . . . Part Schematics Acquired . | . . . . Parts Built . | . . . . Authchips . | . . . . Time . | . . . . Total Part Build Rating . | . . . . Parts Repaired . | . . . . Time . | . . . . Parts Recycled . | . . . . Recycled Matter . | . . . . Retrieved Matter . | . . . . Retrieved Components . | . . . . Parts Scanalyzed . | . . . . Part Schematics Acquired . | . . . . Parts Damaged . | . . . . Bothacking | -11 -10 -10 -9 ------------ Run | Yrd Mat Min Mat Used RIF Installer . | . . . . Robots Hacked . | . . . . Non-combat . | . . . . Combat . | . . . . Robot Hacks Applied . | . . . . Relay Couplers Released . | . . . . Fabnet Peak Effective % . | . . . . Robots Rewired . | . . . . Allies Hacked . | . . . . Hacks Repelled . | . . . . Allies | -11 -10 -10 -9 -------- Run | Yrd Mat Min Mat Total Allies . | . . . . Largest Group . | . . . . Highest-Rated Group . | . . . . Highest-Rated Ally . | . . . . Total Orders . | . . . . Ally Attacks . | . . . . Total Damage . | . . . . Kills . | . . . . Allies Corrupted . | . . . . Allies Melted . | . . . . Intel | -11 -10 -10 -9 ------- Run | Yrd Mat Min Mat Robot Analysis Total . | . . . . Derelict Logs Recovered 2 | . . 2 . Drone Launches . | . . . . Drone Recoveries . | . . . . Exploration | -11 -10 -10 -9 ------------- Run | Yrd Mat Min Mat Turns Passed 1083 | 74 458 329 222 Spaces Moved 539 | 50 211 191 87 Core 34 | 28 . . 6 Treads 505 | 22 211 191 81 Legs . | . . . . Wheels . | . . . . Hover . | . . . . Flight . | . . . . Fastest Speed 50 | 50 160 160 160 Average Speed 156 | 114 160 160 166 Slowest Speed 250 | 160 160 160 250 Overloaded Moves . | . . . . Propulsion Burnouts . | . . . . Robots Hopped . | . . . . Cave-ins Triggered . | . . . . Exploration Rate (%) 31 | 4 42 63 15 Regions Visited 3 Branch Regions 1 Pre-discovered Areas 1 | . . 1 . Known Exits Taken 2 | . 1 1 . Unknown Exits Taken 1 | 1 . . . Scrap Searched . | . . . . Spaces Dug . | . . . . Terrain Destroyed 3 | . 3 . . Melee . | . . . . Projectile . | . . . . AOE 3 | . 3 . . Terrain Rammed 4 | . . . 4 Walls Destroyed . | . . . . Machines Disabled . | . . . . Actions | -11 -10 -10 -9 --------- Run | Yrd Mat Min Mat Total 673 | 67 279 206 121 Wait 30 | . 28 2 . Move 536 | 49 210 190 87 Hop . | . . . . Pick Up 25 | 11 8 4 2 Fast Attach 2 | . . . 2 Attach 8 | 6 1 . 1 Detach . | . . . . Swap 2 | . 2 . . Drop 8 | 1 1 4 2 Fire 58 | . 29 6 23 Melee . | . . . . Ram 4 | . . . 4 Kick . | . . . . Crush . | . . . . Escape Stasis . | . . . . Rewire . | . . . . Trap . | . . . . Miscellaneous . | . . . . Route ------- -11/Scrapyard -10/Materials (discovered 2 exits: *Mat / *Min) -10/Mines (discovered 2 exits: *Mat x2) -9/Materials (discovered 1 exit: Mat) History --------- Turn | Location | Event 19 | -11/Scrapyard | Discovered new exit (range 15) 75 | -11/Scrapyard | Entered Materials 264 | -10/Materials | Discovered new exit (range 7) 290 | -10/Materials | Identified exit to Materials 304 | -10/Materials | Build established: Mutant 502 | -10/Materials | Discovered new exit (range 10) 532 | -10/Materials | Identified exit to Mines 533 | -10/Materials | Entered Mines 541 | -10/Mines | Learned location of 1 exit from Materials 614 | -10/Mines | Met a Derelict shopkeep closing up shop 854 | -10/Mines | Learned location of Storage (-8) 854 | -10/Mines | Discovered exit to Materials (range 6) 862 | -10/Mines | Entered Materials 862 | -9/Materials | Evolved 2 slots: Propulsion x2 863 | -9/Materials | Identified exit to Materials 1062 | -9/Materials | Core integrity fell below 50% 1081 | -9/Materials | Core integrity fell below 20% 1084 | -9/Materials | Destroyed by Y-45 Defender with Beam Rifle Last Messages --------------- Acquired EM Pulse Gun. K-01 Serf cleans the Matter Filter. K-01 Serf collects debris. R-06 Scavenger collects Lgt. Ion Engine. Lgt. Treads destroyed. Terminal disabled. Med. Laser destroyed. Ion Engine destroyed. EM Pulse Gun destroyed. Slammed into Fusion Modulator. Destabilizing: System corrupted (+1). Signal Interpreter broken. Destabilizing: Short circuit. Lgt. Ion Engine destroyed. Slammed into Fusion Modulator. Destabilizing: Core damaged (-16). Destabilizing: Core damaged (-8). Critical hit (Burn: +37). Slammed into Fusion Modulator. Destabilizing: System corrupted (+1). Map ----- +----------------------------------------------------+ | ?????????####+####### "????"""?????????????????? | | ????????? """? """?????????????????? | | ?????????? ? ?????????????????? | | ?????????? ^ ?????????????????? | | ?????????? """ """ #??????????????? | | ??????????# """"" """ """ #??????????????? | | ??????????# """"" """ """ #??????????????? | | ??????????# """"" #??????????????? | | ??????????# """"" ???????????????? | | ??????????# """"" """ ????????????????? | | ??????????# """"" """ #??????????????? | | ??????????# """"" """ #??????????????? | | ??????????# "T" #??????????????? | | ??????????# """ #??????????????? | | ??????????# """"" ???????????? | | ??????????# """"" ??????????? | | ??????????# """"" ######### ???????????? | | ??????????# """"" #=* #?? ###???????????? | | ####???#### """"" #%"" #??????????????????? | | #???# """"" # "T #??????????????????? | | #???# ! """"" =/w " #????##????????????? | | " #???# % # %g%*#?? ##???????????? | | " #???# *% # """g # ????????????? | | " #???# ######## ##g""" + ???????????????? | | #???# !#??????# ##Y""" # ??????????????? | | +####### #??????# ## @ g #? ?????????????? | | #??????+ ## """" #??? #?????????????? | | #??????# ##g"""" #??????????????????? | | #??????# ?# """" #??????????????????? | | +######+#######???# ?# #??????????????????? | | ?#* #??? ?#####+##??????????????????? | | # #??? ??????? ???????????????????? | | # #??# ???????? ???????????????????? | | "" =# """ """ #??# ????????????????????????????? | | "" # """ """ #??? ????????????????????????????? | | "" # """ """ #??????????????????????????????????? | | ##### #??????????????????????????????????? | | ????# ???????????????????????????????????? | | ????##########???????????????????????????????????? | | ?????????????????????????????????????????????????? | | ?????????????????????????????????????????????????? | | ?????????????????????????????????????????????????? | | ?????????????????????????????????????????????????? | | ?????????????????????????????????????????????????? | | ?????????????????????????????????????????????????? | | ?????????????????????????????????????????????????? | | ?????????????????????????????????????????????????? | | ?????????????????????????????????????????????????? | | ?????????????????????????????????????????????????? | | ?????????????????????????????????????????????????? | +----------------------------------------------------+ Best States ------------- Heat Dissipation 28 Energy Generation 10 Energy Capacity 250 Matter Stores 300 Matter Capacity 300 Sight Range 16 Terrain Scan Density 10 Evasion (%) 50 Recoil Reduction 2 Item Schematics ----------------- None Robot Schematics ------------------ None Fabricated ------------ Nothing Alien Tech Used ----------------- None Achievements -------------- None Challenges ------------ None Game ------ Seed CannonGreatTerrabomb Manual? 0 Play Time 00:12:07 Cumulative 49.6 hours Start 2024.12.22 @ 17:01:03 End 2024.12.22 @ 17:44:24 Sessions 3 Manual Loads 0 Difficulty Rogue Special Mode None Game No. 54 Rogue 54 Adventurer 0 Explorer 0 Win Type - Total 1 Types 1/0/0/0/0/0/0/0/0 Lore% 20 Gallery% 34 Achievement% 33 Wizard Run 0 Options --------- Layout 1 ASCII 0 Keyboard 0 Movement Mouse Keybinds 0 Fullscreen 1 Font 24/Smallcaps Map View 50x35 Zoom Use 0% Tactical HUD 0 Map Filters NONE Filters NONE Steam 1 RUN: df8ad9ce-80d9-4825-aa4a-3aa68b51bc6a